bitfinex-derivatives/quotes_SOLF0:USTF0_20241107
["timestamp","ask_amount","ask_price","bid_price","bid_amount"]
[1731005361304,13.96099117,197.87,197.76,3.52]
[1731005361703,13.96099117,197.89,197.78,13.96099117]
[1731005362006,13.96099117,197.89,197.78,12.96099117]
[1731005362202,2.5245,197.87,197.8,2.5253]
[1731005362801,13.96099117,197.89,197.8,2.5253]
[1731005362999,2.5246,197.86,197.8,2.5253]
[1731005363203,13.96099117,197.89,197.78,12.96099117]
[1731005363404,13.96099117,197.89,197.78,15.48649117]
[1731005363605,2.5249,197.84,197.78,15.48649117]
[1731005364102,1.5249,197.84,197.79,2.5255]
[1731005365010,2.5252,197.82,197.76,6.0458]
[1731005365312,2.5252,197.82,197.76,1.5258]
[1731005365514,2.5252,197.82,197.75,13.96099117]
[1731005365714,2.5252,197.82,197.77,2.5257]
[1731005365913,2.5252,197.82,197.75,13.96099117]
[1731005366214,13.96099117,197.91,197.81,2.5252]
[1731005366511,2.5244,197.88,197.81,13.96099117]
[1731005366708,2.5244,197.88,197.82,2.5251]
[1731005366905,13.96099117,197.91,197.81,13.96099117]
[1731005367306,2.5246,197.86,197.81,16.48609117]
[1731005367708,12.96099117,197.91,197.8,4.7705]
[1731005367910,2.5249,197.84,197.8,3.52]
[1731005368312,3.7283,197.9,197.8,2.52]
[1731005368511,2.5248,197.85,197.8,5.0453]
[1731005369202,1.5248,197.85,197.8,5.0453]
[1731005369607,2.5247,197.86,197.81,2.5252]
[1731005370710,2.5245,197.88,197.8,1.52]
[1731005371015,2.5245,197.88,197.81,12.96099117]
[1731005371207,2.5046,197.9,197.81,12.96099117]
[1731005371804,2.5243,197.89,197.84,2.5248]
[1731005372009,1.5046,197.9,197.84,2.5248]
[1731005372314,1.5046,197.9,197.81,12.96099117]
[1731005372512,2.5246,197.86,197.82,1.5251]
[1731005372721,15.46559117,197.9,197.69,40.22844878]
[1731005372908,2.5252,197.82,197.77,2.5257]
[1731005373107,13.96099117,197.87,197.75,13.96099117]
[1731005373813,2.5253,197.81,197.76,2.5258]
[1731005374013,1.5253,197.81,197.75,13.96099117]
[1731005374413,1.5253,197.81,197.76,1.5258]
[1731005374610,2.5256,197.79,197.75,13.96099117]
[1731005375005,13.96099117,197.84,197.72,16.48729117]
[1731005375212,2.5258,197.77,197.72,13.96099117]
[1731005375518,1.5258,197.77,197.72,13.96099117]
[1731005375714,2.526,197.76,197.71,2.5264]
[1731005376106,13.96099117,197.84,197.72,13.96099117]
[1731005376308,13.96099117,197.84,197.75,2.526]
[1731005376715,12.96099117,197.84,197.72,13.96099117]
[1731005377121,2.5251,197.82,197.76,1.5259]
[1731005377318,1.2637,197.86,197.75,13.96099117]
[1731005377517,2.525,197.83,197.78,2.5256]
[1731005377821,15.46559117,197.9,197.78,13.96099117]
[1731005378015,14.46559117,197.9,197.78,13.96099117]
[1731005378216,2.5245,197.87,197.78,13.96099117]
[1731005378521,14.46559117,197.9,197.78,12.96099117]
[1731005378713,2.5248,197.85,197.81,2.5252]
[1731005378912,2.5248,197.85,197.78,12.96099117]
[1731005379323,1.5248,197.85,197.8,2.5254]
[1731005379716,1.5248,197.85,197.8,1.5254]
[1731005379917,1.5248,197.85,197.78,12.96099117]
[1731005380121,14.46559117,197.9,197.78,12.96099117]
[1731005380325,2.5246,197.86,197.78,12.96099117]
[1731005380625,12.96099117,197.92,197.83,2.525]
[1731005380919,2.5244,197.88,197.83,1.525]
[1731005381114,2.5244,197.88,197.82,2.5251]
[1731005382018,13.96099117,197.9,197.8,16.48629117]
[1731005382323,13.96099117,197.9,197.8,15.48629117]
[1731005382515,2.5248,197.85,197.8,15.48629117]
[1731005382715,2.5248,197.85,197.8,2.5253]
[1731005383219,1.5248,197.85,197.8,2.5253]
[1731005383521,13.96099117,197.9,197.8,1.5253]
[1731005383826,13.96099117,197.91,197.83,2.5249]
[1731005384012,13.96099117,197.91,197.78,15.29489117]
[1731005384213,2.5246,197.87,197.78,15.29489117]
[1731005384522,2.6106,197.94,197.81,2.5252]
[1731005384721,13.96099117,197.9,197.81,2.5252]
[1731005384922,2.5247,197.86,197.81,2.5252]
[1731005385418,13.96099117,197.9,197.78,15.29489117]
[1731005385614,2.5245,197.87,197.82,2.525]
[1731005385817,2.5245,197.87,197.78,15.29489117]
[1731005386220,2.5244,197.88,197.82,2.525]
[1731005386423,12.96099117,197.9,197.82,2.525]
[1731005386616,12.96099117,197.9,197.79,2.5254]
[1731005386818,2.5247,197.86,197.78,14.29489117]
[1731005387018,2.5247,197.86,197.78,13.96099117]
[1731005387325,2.5245,197.87,197.82,2.525]
[1731005387620,12.96099117,197.9,197.78,13.96099117]
[1731005387925,2.5248,197.85,197.8,2.5253]
[1731005388322,2.5248,197.85,197.78,12.96099117]
[1731005388522,12.96099117,197.9,197.81,2.5252]
[1731005388722,11.96099117,197.9,197.78,16.48099117]
[1731005388923,13.96099117,197.88,197.77,2.6126]
[1731005389222,13.96099117,197.88,197.77,1.6126]
[1731005389721,2.5249,197.84,197.78,2.5255]
[1731005389916,2.5249,197.84,197.77,1.6126]
[1731005390122,12.96099117,197.88,197.77,1.3329]
[1731005390325,2.5254,197.8,197.75,3.52]
[1731005390521,13.96099117,197.83,197.7,13.96099117]
[1731005390727,1.2744,197.82,197.71,3.52]
[1731005390928,2.5259,197.76,197.71,6.0464]
[1731005391323,1.5259,197.76,197.71,6.0464]
[1731005391524,2.5258,197.77,197.72,2.5263]
[1731005391719,13.96099117,197.8,197.72,1.5263]
[1731005392620,12.96099117,197.8,197.72,1.5263]
[1731005393026,12.96099117,197.8,197.71,3.52]
[1731005393329,4.7944,197.82,197.71,3.52]
[1731005393532,1.3746,197.79,197.71,3.52]
[1731005393729,1.3746,197.79,197.71,2.5265]
[1731005393730,2.526,197.75,197.71,2.5265]
[1731005393933,1.3746,197.79,197.69,13.96099117]
[1731005394132,2.526,197.75,197.7,2.5266]
[1731005394328,2.526,197.75,197.69,13.96099117]
[1731005394636,1.526,197.75,197.68,18.84779117]
[1731005394832,2.5262,197.74,197.7,2.5266]
[1731005395029,2.5262,197.74,197.7,1.5266]
[1731005395831,1.5262,197.74,197.7,1.5266]
[1731005396035,1.3746,197.79,197.68,18.84779117]
[1731005396226,1.3746,197.79,197.65,2.53642581]
[1731005396423,2.526,197.75,197.68,13.96099117]
[1731005396734,1.3746,197.79,197.69,1.5267]
[1731005396922,2.5265,197.72,197.66,13.96099117]
[1731005397124,13.96099117,197.74,197.64,2.5274]
[1731005397329,1.3801,197.73,197.63,13.96099117]
[1731005397735,0.3801,197.73,197.63,13.96099117]
[1731005398035,2.5267,197.7,197.65,2.5272]
[1731005398438,1.2785,197.76,197.66,13.96099117]
[1731005398738,2.5261,197.75,197.7,2.5266]
[1731005398927,1.5261,197.75,197.7,2.5266]
[1731005399330,1.5261,197.75,197.7,1.5266]
[1731005399837,1.2785,197.76,197.69,13.96099117]
[1731005400029,0.2785,197.76,197.69,13.96099117]
[1731005400430,1.3746,197.79,197.69,12.96099117]
[1731005400631,1.3746,197.79,197.64,3.52]
[1731005400825,1.3746,197.79,197.68,13.96099117]
[1731005401132,13.96099117,197.83,197.71,13.96099117]
[1731005401631,2.5251,197.83,197.74,13.96099117]
[1731005402232,13.96099117,197.86,197.74,13.96099117]
[1731005402537,13.96099117,197.84,197.74,13.96099117]
[1731005402926,2.5252,197.82,197.75,2.5259]
[1731005403126,13.96099117,197.84,197.71,17.48099117]
[1731005403726,13.96099117,197.84,197.75,2.526]
[1731005403930,13.96099117,197.84,197.71,17.48099117]
[1731005404130,13.96099117,197.84,197.71,16.48099117]
[1731005404336,2.5255,197.8,197.75,2.526]
[1731005404736,2.5256,197.79,197.73,2.5262]
[1731005404927,2.5256,197.79,197.71,16.48099117]
[1731005405130,1.5256,197.79,197.71,16.48099117]
[1731005405534,1.5256,197.79,197.71,15.48099117]
[1731005405734,1.5256,197.79,197.74,2.5261]
[1731005406536,1.5256,197.79,197.74,2.526]
[1731005406737,13.96099117,197.84,197.71,15.48099117]
[1731005406937,3.52,197.85,197.7,2.5266]
[1731005407126,13.96099117,197.79,197.67,17.48099117]
[1731005407325,13.96099117,197.79,197.67,16.48099117]
[1731005407526,2.5261,197.75,197.7,2.5266]
[1731005408130,13.96099117,197.79,197.7,2.5266]
[1731005408337,2.5262,197.74,197.7,2.5266]
[1731005408540,2.5262,197.74,197.7,1.5266]
[1731005408737,2.5262,197.74,197.67,16.48099117]
[1731005408940,2.5262,197.74,197.69,2.5268]
[1731005409641,1.5262,197.74,197.67,16.48099117]
[1731005409844,1.5262,197.74,197.67,15.48099117]
[1731005410342,1.5262,197.74,197.69,2.5267]
[1731005410539,1.5262,197.74,197.67,11.96099117]
[1731005410737,2.526,197.75,197.67,11.96099117]
[1731005410942,2.7101,197.78,197.69,13.96099117]
[1731005411237,16.48099117,197.79,197.66,1.3333]
[1731005411238,15.32029117,197.86,197.74,13.96099117]
[1731005411438,14.32029117,197.86,197.74,13.96099117]
[1731005411634,27.92948381,197.86,197.74,12.96099117]
[1731005411836,2.5255,197.79,197.73,3.52]
[1731005412238,13.96099117,197.81,197.68,3.52]
[1731005412446,2.5257,197.78,197.69,13.96099117]
[1731005412745,1.3456,197.82,197.72,13.96099117]
[1731005412937,13.96099117,197.83,197.72,13.96099117]
[1731005413533,2.5252,197.82,197.76,2.5258]
[1731005413739,13.96099117,197.83,197.72,13.96099117]
[1731005413938,12.96099117,197.83,197.72,13.96099117]
[1731005414140,2.5253,197.81,197.76,1.5259]
[1731005415133,1.5253,197.81,197.76,1.5259]
[1731005415343,1.5253,197.81,197.76,0.5259]
[1731005415545,1.5253,197.81,197.72,13.96099117]
[1731005416140,1.5255,197.79,197.72,13.96099117]
[1731005416649,2.5256,197.78,197.73,1.5262]
[1731005416844,12.96099117,197.83,197.72,13.96099117]
[1731005417147,2.5259,197.77,197.72,2.5264]
[1731005417350,13.96099117,197.81,197.69,13.96099117]
[1731005417537,12.96099117,197.81,197.71,2.5265]
[1731005417843,1.319,197.82,197.69,12.96099117]
[1731005418043,13.96099117,197.79,197.69,12.96099117]
[1731005418345,2.526,197.76,197.71,2.5265]
[1731005418751,1.526,197.76,197.71,2.5265]
[1731005419047,2.5262,197.74,197.7,1.5266]
[1731005419233,27.66015671,197.79,197.7,1.5266]
[1731005419437,13.96099117,197.79,197.7,1.5266]
[1731005419633,2.526,197.75,197.7,1.5266]
[1731005420045,2.5263,197.73,197.68,2.5269]
[1731005420247,2.5263,197.73,197.67,3.52]
[1731005420541,2.5263,197.73,197.67,2.52]
[1731005420941,2.5263,197.73,197.68,2.5269]
[1731005421342,1.5263,197.73,197.68,2.5269]
[1731005421549,2.5261,197.74,197.69,2.5267]
[1731005421749,13.70201499,197.77,197.69,13.96099117]
[1731005421947,6.86308269,197.78,197.69,13.96099117]
[1731005422242,13.96099117,197.79,197.69,13.96099117]
[1731005422443,6.86256274,197.79,197.69,13.96099117]
[1731005422646,2.5257,197.78,197.73,2.5262]
[1731005423048,13.7017726,197.81,197.69,13.96099117]
[1731005423252,1.5259,197.76,197.69,13.96099117]
[1731005423436,15.27999117,197.82,197.69,13.96099117]
[1731005423641,1.319,197.82,197.69,12.96099117]
[1731005423842,2.5261,197.75,197.7,2.5266]
[1731005424045,13.96099117,197.8,197.69,12.96099117]
[1731005424543,12.96099117,197.8,197.69,12.96099117]
[1731005424738,2.5262,197.74,197.69,15.48769117]
[1731005424950,12.96099117,197.8,197.67,1.52]
[1731005425145,13.96099117,197.77,197.67,1.52]
[1731005425351,2.5263,197.73,197.68,2.5268]
[1731005426043,2.5263,197.73,197.67,4.0469]
[1731005426238,2.5265,197.72,197.67,4.0469]
[1731005426444,1.5265,197.72,197.66,16.66689117]
[1731005426646,1.5265,197.72,197.68,2.5268]
[1731005426845,2.5263,197.73,197.68,1.5268]
[1731005427050,13.96099117,197.77,197.69,2.5267]
[1731005427247,13.96099117,197.77,197.66,16.66689117]
[1731005427738,12.96099117,197.77,197.66,16.66689117]
[1731005427939,2.5262,197.74,197.66,15.66689117]
[1731005428346,13.96099117,197.8,197.69,16.48769117]
[1731005428542,2.526,197.76,197.69,13.96099117]
[1731005428950,15.27999117,197.82,197.71,13.96099117]
[1731005429344,13.96099117,197.8,197.7,2.5266]
[1731005429548,13.96099117,197.8,197.68,13.96099117]
[1731005430355,2.5263,197.73,197.69,2.5267]
[1731005430551,12.96099117,197.8,197.69,1.5267]
[1731005430751,19.82361894,197.8,197.68,13.96099117]
[1731005430953,19.82361894,197.8,197.73,2.5262]
[1731005430954,12.96099117,197.8,197.73,2.5262]
[1731005431248,12.96099117,197.8,197.69,1.3497]
[1731005431445,1.319,197.82,197.69,1.3497]
[1731005431655,2.5254,197.8,197.74,2.5261]
[1731005431843,1.3395,197.83,197.75,13.96099117]
[1731005432043,6.86277934,197.84,197.75,13.96099117]
[1731005432251,2.5251,197.83,197.77,2.5256]
[1731005432450,13.96099117,197.85,197.77,2.5256]
[1731005432855,2.5254,197.81,197.76,2.5258]
[1731005433053,6.86211029,197.84,197.75,13.96099117]
[1731005433257,13.96099117,197.82,197.7,3.52]
[1731005433453,2.5257,197.78,197.73,2.5263]
[1731005433650,1.5257,197.78,197.71,13.96099117]
[1731005433851,1.5257,197.78,197.71,12.96099117]
[1731005434152,2.5258,197.77,197.71,12.96099117]
[1731005434659,2.5255,197.8,197.71,12.96099117]
[1731005434859,1.5255,197.8,197.71,12.96099117]
[1731005435053,13.96099117,197.82,197.71,12.96099117]
[1731005435054,13.96099117,197.82,197.75,1.526]
[1731005435260,2.5256,197.79,197.71,12.96099117]
[1731005435655,2.5256,197.79,197.74,2.526]
[1731005436048,1.5256,197.79,197.71,12.96099117]
[1731005436463,2.5254,197.8,197.71,11.96099117]
[1731005436659,13.96099117,197.82,197.74,2.5261]
[1731005436858,13.96099117,197.82,197.71,11.96099117]
[1731005437259,2.5254,197.81,197.75,2.526]
[1731005437455,2.742,197.89,197.74,13.96099117]
[1731005437659,13.96099117,197.86,197.74,12.96099117]
[1731005437963,2.5252,197.82,197.78,2.5256]
[1731005438151,13.96099117,197.86,197.78,2.5256]
[1731005438556,1.5251,197.83,197.78,2.5256]
[1731005438961,1.5251,197.83,197.78,1.5256]
[1731005439469,1.5251,197.83,197.75,13.96099117]
[1731005439658,1.5251,197.83,197.77,2.5257]
[1731005439859,1.5251,197.83,197.75,13.96099117]
[1731005440067,13.96099117,197.86,197.71,11.96099117]
[1731005440368,6.86478155,197.88,197.71,11.96099117]
[1731005440558,2.5252,197.82,197.75,13.96099117]
[1731005440761,16.70299117,197.89,197.69,1.3497]
[1731005440960,13.96099117,197.79,197.7,3.5]
[1731005441169,13.96099117,197.79,197.69,1.3497]
[1731005441370,13.96099117,197.79,197.7,2.5266]
[1731005441668,2.526,197.75,197.69,1.3497]
[1731005441862,1.526,197.75,197.7,2.5266]
[1731005442061,13.96099117,197.79,197.69,0.3497]
[1731005442268,2.526,197.75,197.69,0.3497]
[1731005442572,2.526,197.75,197.7,2.5265]
[1731005442767,13.96099117,197.79,197.69,0.3497]
[1731005443064,13.96099117,197.77,197.67,2.527]
[1731005443264,12.96099117,197.77,197.66,4.2059]
[1731005443465,2.5264,197.73,197.66,4.2059]
[1731005443963,2.5264,197.73,197.68,2.5269]
[1731005444364,2.5264,197.72,197.68,1.5269]
[1731005445163,12.96099117,197.77,197.66,4.2059]
[1731005445164,1.4116,197.8,197.66,4.2059]
[1731005445366,2.526,197.76,197.67,13.96099117]
[1731005445665,6.84430317,197.8,197.67,12.96099117]
[1731005445873,2.5258,197.77,197.72,2.5263]
[1731005446577,2.5256,197.79,197.7,13.96099117]
[1731005446869,1.5256,197.79,197.7,13.96099117]
[1731005447074,1.5256,197.79,197.7,12.96099117]
[1731005447262,1.5256,197.79,197.74,2.526]
[1731005448074,13.96099117,197.81,197.74,2.526]
[1731005448269,13.96099117,197.81,197.72,2.5]
[1731005448469,2.5257,197.78,197.73,2.5262]
[1731005448670,1.4248,197.83,197.72,16.46099117]
[1731005449066,0.4248,197.83,197.72,16.46099117]
[1731005449472,15.37259117,197.84,197.76,2.5258]
[1731005449675,22.21695936,197.84,197.75,2.51329222]
[1731005449967,2.5252,197.82,197.77,2.5258]
[1731005450267,6.84436819,197.83,197.72,1.5]
[1731005450873,2.5252,197.81,197.76,2.5258]
[1731005451073,1.5252,197.81,197.75,2.49812904]
[1731005451277,1.5252,197.81,197.74,2.526]
[1731005451466,2.5252,197.81,197.75,2.566609]
[1731005451773,2.5252,197.81,197.73,13.96099117]
[1731005451972,2.5252,197.81,197.76,2.5258]
[1731005452278,13.67601404,197.83,197.75,2.49130631]
[1731005452475,1.5254,197.81,197.76,2.526]
[1731005452775,1.5254,197.81,197.76,1.526]
[1731005453669,2.5252,197.83,197.77,2.5258]
[1731005454173,2.5252,197.83,197.77,1.5258]
[1731005454368,2.5252,197.83,197.75,2.51101641]
[1731005454572,2.5252,197.83,197.78,2.5258]
[1731005455074,1.5252,197.83,197.78,2.5258]
[1731005455277,1.5252,197.83,197.78,1.5258]
[1731005456175,13.96099117,197.84,197.78,1.5258]
[1731005456672,16.48599117,197.84,197.79,2.5256]
[1731005456882,16.48599117,197.84,197.74,1.3087]
[1731005456883,13.96099117,197.87,197.75,2.53679116]
[1731005457281,1.3646,197.88,197.74,1.3087]
[1731005457579,8.92774342,197.76,197.74,1.3087]
[1731005457877,2.5262,197.75,197.74,0.3087]
[1731005458276,8.92774342,197.76,197.74,0.3087]
[1731005458476,7.92774342,197.76,197.74,0.3087]
[1731005458975,2.5263,197.75,197.7,8.92774342]
[1731005459177,7.92774342,197.76,197.7,8.92774342]
[1731005459482,2.5263,197.74,197.7,2.51556489]
[1731005460069,2.526,197.77,197.7,16.47190832]
[1731005460280,2.526,197.77,197.7,13.95634343]
[1731005460477,1.3477,197.8,197.7,13.95634343]
[1731005460478,3.8733,197.8,197.74,2.5263]
[1731005460673,1.3477,197.8,197.71,2.56398967]
[1731005460873,8.20349577,197.8,197.7,13.95634343]
[1731005461581,2.526,197.77,197.72,2.5265]
[1731005461778,1.526,197.77,197.7,16.53095213]
[1731005462078,1.526,197.77,197.7,15.53095213]
[1731005462382,1.3477,197.8,197.7,15.53095213]
[1731005462573,1.3477,197.8,197.72,2.5265]
[1731005462574,2.5259,197.77,197.72,2.5265]
[1731005462783,8.20330176,197.8,197.7,15.53095213]
[1731005462977,1.3477,197.8,197.7,15.53095213]
[1731005463184,0.3477,197.8,197.7,15.53095213]
[1731005463376,0.3477,197.8,197.7,14.53095213]
[1731005463776,2.5259,197.77,197.71,2.5267]
[1731005463976,7.57275765,197.8,197.71,2.5267]
[1731005464376,2.5261,197.76,197.71,2.5267]
[1731005464576,6.57275765,197.8,197.7,13.53095213]
[1731005464983,2.526,197.77,197.7,13.53095213]
[1731005465179,2.526,197.77,197.72,2.5265]
[1731005465486,1.5258,197.78,197.7,13.53095213]
[1731005465684,1.5258,197.78,197.73,2.5264]
[1731005465888,6.85550371,197.83,197.71,1.3543]
[1731005466286,6.85550371,197.83,197.75,13.95634343]
[1731005466481,1.3697,197.85,197.75,13.95634343]
[1731005466689,2.5256,197.8,197.74,2.5263]
[1731005466885,1.5256,197.8,197.71,1.3543]
[1731005467082,6.85550371,197.84,197.71,1.3543]
[1731005467387,2.5254,197.81,197.73,13.95634343]
[1731005467783,15.32604343,197.85,197.76,2.526]
[1731005467981,2.5257,197.79,197.71,13.95634343]
[1731005468388,1.5257,197.79,197.74,2.5263]
[1731005468585,1.5257,197.79,197.74,1.5263]
[1731005468789,1.3697,197.85,197.74,13.95634343]
[1731005469092,2.5251,197.84,197.78,2.5257]
[1731005469286,1.3697,197.85,197.74,13.95634343]
[1731005470093,3.8947,197.85,197.79,2.5256]
[1731005470485,2.5254,197.82,197.75,2.5261]
[1731005470686,2.5254,197.82,197.71,18.78184343]
[1731005470881,1.5254,197.82,197.71,18.78184343]
[1731005471082,1.5254,197.82,197.76,2.526]
[1731005471284,13.95634343,197.83,197.76,1.526]
[1731005471486,2.5254,197.81,197.76,1.526]
[1731005471885,2.5254,197.81,197.75,13.95634343]
[1731005472082,13.95634343,197.81,197.62,36.4]
[1731005472290,3.5,197.84,197.67,13.95634343]
[1731005472495,2.5256,197.79,197.74,2.5262]
[1731005472685,2.5256,197.79,197.7,13.95634343]
[1731005472686,1.5256,197.79,197.7,13.95634343]
[1731005472989,1.5256,197.79,197.73,2.5263]
[1731005473700,1.5256,197.79,197.73,1.5263]
[1731005474293,17.45634343,197.84,197.73,1.5263]
[1731005474494,16.45634343,197.84,197.73,1.5263]
[1731005474894,16.45634343,197.84,197.72,2.51304105]
[1731005475089,16.45634343,197.84,197.7,13.95634343]
[1731005475393,13.95634343,197.84,197.73,13.95634343]
[1731005475593,1.3697,197.85,197.73,16.48227446]
[1731005475892,1.3697,197.85,197.74,4.7817]
[1731005476093,2.525,197.84,197.77,2.5257]
[1731005476290,13.95634343,197.87,197.75,13.95634343]
[1731005476692,13.95634343,197.87,197.74,4.7817]
[1731005476693,13.95634343,197.84,197.74,3.7817]
[1731005476887,13.95634343,197.84,197.74,3.5]
[1731005477084,13.95634343,197.84,197.73,13.95634343]
[1731005477291,13.95634343,197.84,197.74,2.5262]
[1731005477596,12.95634343,197.84,197.71,4.8057]
[1731005477891,13.95634343,197.81,197.71,3.5]
[1731005478097,13.95634343,197.76,197.62,2.48915439]
[1731005478393,13.95634343,197.73,197.63,2.5276]
[1731005478895,8.0442814,197.75,197.62,13.95634343]
[1731005479198,14.14044343,197.75,197.62,13.95634343]
[1731005479393,28.15063917,197.75,197.62,12.95634343]
[1731005479589,7.15001434,197.74,197.62,12.95634343]
[1731005479893,13.95634343,197.73,197.62,12.95634343]
[1731005480103,13.95634343,197.73,197.62,15.48414343]
[1731005480394,13.95634343,197.73,197.62,12.95634343]
[1731005480696,12.95634343,197.73,197.62,12.95634343]
[1731005480991,7.33411434,197.75,197.61,15.15674343]
[1731005481193,13.95634343,197.73,197.61,15.15674343]
[1731005481389,2.527,197.69,197.64,2.5275]
[1731005481594,13.95634343,197.73,197.64,2.5275]
[1731005481595,7.25297732,197.72,197.64,2.5275]
[1731005481792,1.1663,197.74,197.63,13.95634343]
[1731005482194,1.1663,197.74,197.65,2.5274]
[1731005482195,2.5265,197.73,197.65,2.5274]
[1731005482398,1.1663,197.74,197.63,12.95634343]
[1731005482993,1.1663,197.74,197.67,2.5271]
[1731005482994,1.5264,197.73,197.67,2.5271]
[1731005483190,1.1663,197.74,197.63,12.95634343]
[1731005483398,1.1663,197.74,197.63,11.95634343]
[1731005483787,6.85772704,197.75,197.66,13.95634343]
[1731005483990,13.95634343,197.78,197.66,13.95634343]
[1731005484194,16.48224343,197.78,197.71,2.5266]
[1731005484397,12.95634343,197.78,197.71,2.5266]
[1731005484693,12.95634343,197.78,197.71,1.5266]
[1731005485295,1.2734,197.8,197.68,13.95634343]
[1731005485495,13.95634343,197.81,197.75,2.5261]
[1731005485903,16.48174343,197.81,197.75,1.5261]
[1731005486496,2.5255,197.8,197.75,1.5261]
[1731005486697,1.5255,197.8,197.75,1.5261]
[1731005487002,1.5255,197.8,197.74,2.5262]
[1731005487204,1.5255,197.8,197.71,3.5]
[1731005487604,1.5255,197.8,197.71,2.5]
[1731005488298,6.94247519,197.84,197.75,2.5261]
[1731005488607,1.5251,197.84,197.73,13.95634343]
[1731005488899,1.5251,197.84,197.77,1.5258]
[1731005489103,8.14137519,197.85,197.73,13.95634343]
[1731005489510,1.1989,197.85,197.76,2.5259]
[1731005489700,2.5251,197.83,197.73,13.95634343]
[1731005490007,2.5251,197.83,197.78,2.5258]
[1731005490602,2.5251,197.83,197.71,2.5]
[1731005490603,13.95634343,197.82,197.69,1.2121]
[1731005490798,13.95634343,197.73,197.66,1.2622]
[1731005490998,12.95634343,197.73,197.61,16.53066346]
[1731005491205,12.95634343,197.73,197.61,17.45634343]
[1731005491411,12.95634343,197.73,197.61,16.45634343]
[1731005491703,13.95634343,197.76,197.64,13.95634343]
[1731005492210,2.5264,197.73,197.65,2.5274]
[1731005492897,1.5264,197.73,197.65,2.5274]
[1731005493410,1.5264,197.73,197.65,1.5274]
[1731005493802,2.5265,197.72,197.65,1.5274]
[1731005494008,13.95634343,197.76,197.64,3.5]
[1731005494208,0.2226,197.75,197.64,3.5]
[1731005494407,2.5267,197.71,197.64,3.5]
[1731005494705,2.5267,197.71,197.64,2.5]
[1731005495110,2.5265,197.73,197.65,2.5274]
[1731005495303,2.5265,197.73,197.65,5.0082101]
[1731005495811,2.5265,197.72,197.65,5.0082101]
[1731005496109,1.5265,197.72,197.65,5.0082101]
[1731005496412,1.5265,197.72,197.65,4.0082101]
[1731005496608,1.5265,197.72,197.65,2.4808101]
[1731005496817,1.5265,197.72,197.64,2.5]
[1731005497001,1.5265,197.72,197.64,4.9985085]
[1731005497202,0.5265,197.72,197.64,4.9985085]
[1731005497402,0.2226,197.75,197.64,4.9985085]
[1731005497615,0.2226,197.75,197.64,3.9985085]
[1731005498006,2.5267,197.71,197.65,2.5273]
[1731005498504,13.36843661,197.75,197.64,6.5260085]
[1731005498703,27.32478004,197.75,197.64,1.5]
[1731005498906,6.94118465,197.74,197.64,0.5]
[1731005499109,2.527,197.69,197.62,2.5277]
[1731005499302,13.95634343,197.72,197.61,13.95634343]
[1731005499704,13.95634343,197.72,197.61,16.48424343]
[1731005499907,12.95634343,197.72,197.62,2.46930758]
[1731005500516,12.95634343,197.72,197.6,1.2067]
[1731005500911,12.95634343,197.72,197.61,2.5279]
[1731005501113,13.95634343,197.69,197.61,2.5279]
[1731005501313,13.95634343,197.66,197.58,3.5]
[1731005501617,2.5275,197.65,197.59,2.5282]
[1731005501807,12.95634343,197.66,197.55,17.45634343]
[1731005502209,12.95634343,197.66,197.55,20.00125896]
[1731005502617,15.18464343,197.69,197.58,13.95634343]
[1731005502822,15.18464343,197.69,197.58,12.95634343]
[1731005503110,13.95634343,197.69,197.58,12.95634343]
[1731005504209,13.95634343,197.69,197.58,11.95634343]
[1731005504415,13.95634343,197.66,197.56,3.5]
[1731005504922,3.5,197.7,197.35,15.17]
[1731005504923,13.95634343,197.61,197.35,15.17]
[1731005505212,12.95634343,197.61,197.48,13.95634343]
[1731005505420,2.5283,197.59,197.53,2.5289]
[1731005506018,2.5283,197.59,197.53,1.5289]
[1731005506218,1.2443,197.6,197.48,13.95634343]
[1731005506516,13.95634343,197.55,197.46,1.2055]
[1731005507019,12.95634343,197.55,197.46,1.2055]
[1731005507320,13.95634343,197.58,197.52,2.529]